bitfinex/quotes_SOLUSD_20251009
["timestamp","ask_amount","ask_price","bid_price","bid_amount"]
[1760026256577,4.04458449,219.01,218.96,32.92]
[1760026256879,4.71458449,219.01,218.96,32.92]
[1760026257051,4.04458449,219.0,218.96,37.48704076]
[1760026257370,4.71458449,219.0,218.96,37.48704076]
[1760026257568,0.67,218.99,218.96,20.8]
[1760026257775,4.04458449,218.99,218.97,32.92]
[1760026257954,0.67,218.98,218.97,32.92]
[1760026258360,31.67647521,219.09,218.97,32.92]
[1760026258556,31.67647521,219.09,218.98,0.65]
[1760026258557,0.67,219.08,218.98,0.65]
[1760026258758,4.04458449,219.05,218.98,0.65]
[1760026259175,0.67,219.06,218.99,4.56641855]
[1760026259379,0.67,219.06,219.0,32.92]
[1760026259578,0.67,219.09,219.01,0.65]
[1760026259798,0.87,219.12,219.03,20.8]
[1760026259953,4.91458449,219.12,219.04,33.57]
[1760026260560,4.91458449,219.12,219.04,0.65]
[1760026260761,4.04458449,219.09,219.05,32.92]
[1760026260964,4.71458449,219.09,219.05,32.92]
[1760026261258,0.67,219.09,219.05,32.92]
[1760026261678,4.04458449,219.1,219.05,37.48512851]
[1760026261879,8.60851272,219.11,219.05,38.13512851]
[1760026262252,4.04458449,219.11,219.05,38.13512851]
[1760026262473,4.91458449,219.12,219.05,38.13512851]
[1760026262869,0.87,219.12,219.05,37.48512851]
[1760026263185,0.2,219.12,219.06,0.65]
[1760026263386,4.24458449,219.12,219.05,37.48512851]
[1760026263594,4.24458449,219.12,219.05,5.21512851]
[1760026263774,0.2,219.12,219.06,32.92]
[1760026263971,4.24458449,219.12,219.06,32.92]
[1760026264295,0.2,219.12,219.06,33.57]
[1760026264596,4.24458449,219.12,219.06,33.57]
[1760026265163,0.2,219.12,219.07,4.56475099]
[1760026265360,0.2,219.12,219.07,5.21475099]
[1760026265556,0.2,219.12,219.08,0.65]
[1760026265785,0.2,219.12,219.09,0.65]
[1760026265968,0.2,219.12,219.1,33.57]
[1760026266501,0.2,219.12,219.11,0.65]
[1760026267380,0.2,219.12,219.11,5.21391766]
[1760026269780,0.2,219.12,219.07,20.8]
[1760026270000,4.04458449,219.11,219.08,32.9]
[1760026270496,4.71458449,219.11,219.08,32.9]
[1760026270680,4.04458449,219.1,219.09,32.9]
[1760026270879,0.67,219.1,219.09,32.9]
[1760026271088,4.04458449,219.1,219.09,32.9]
[1760026271506,4.04458449,219.11,219.09,32.9]
[1760026271797,0.2,219.12,219.09,32.9]
[1760026271998,0.2,219.12,219.09,38.11426896]
[1760026272175,0.2,219.12,219.09,37.46426896]
[1760026272376,0.2,219.12,219.09,38.11426896]
[1760026272578,4.24458449,219.12,219.09,32.9]
[1760026272808,8.8082964,219.12,219.06,5.23495482]
[1760026272994,4.04458449,219.1,219.07,32.9]
[1760026273189,4.04458449,219.09,219.07,32.9]
[1760026273386,4.04458449,219.1,219.07,32.9]
[1760026273586,4.75458449,219.1,219.07,32.9]
[1760026274308,4.75458449,219.1,219.06,4.56491663]
[1760026274486,4.75458449,219.1,219.07,32.9]
[1760026275202,8.60878262,219.1,219.07,32.9]
[1760026275406,0.2,219.12,219.04,4.5651994]
[1760026275590,0.2,219.12,219.08,0.67]
[1760026275796,0.2,219.12,219.09,0.67]
[1760026276002,0.2,219.12,219.1,32.9]
[1760026276203,0.2,219.12,219.11,32.9]
[1760026277512,5.47370938,219.12,219.11,32.9]
[1760026277697,11.50876623,219.12,219.1,32.9]
[1760026277898,10.79876623,219.12,219.1,32.9]
[1760026278602,6.74505685,219.11,219.04,4.56524383]
[1760026278804,6.03505685,219.1,219.05,32.9]
[1760026279111,6.03505685,219.11,219.06,38.13495462]
[1760026279510,0.2,219.12,219.07,0.67]
[1760026280007,0.2,219.12,219.08,0.67]
[1760026280214,0.2,219.12,219.06,48.87735304]
[1760026280393,0.2,219.12,219.07,0.67]
[1760026280586,0.2,219.12,219.06,25.36495462]
[1760026280793,0.2,219.12,219.07,32.9]
[1760026281088,6.23505685,219.12,219.08,4.56454263]
[1760026281290,6.23505685,219.12,219.08,5.23454263]
[1760026281509,0.2,219.12,219.08,5.23454263]
[1760026282909,0.2,219.12,219.08,4.56454263]
[1760026283114,0.2,219.12,219.09,5.23426595]
[1760026283597,0.2,219.12,219.09,0.67]
[1760026284007,0.2,219.12,219.1,32.9]
[1760026285913,0.2,219.12,219.11,0.67]
[1760026287130,0.2,219.12,219.11,5.23391766]
[1760026290738,0.2,219.12,219.11,37.46391766]
[1760026290914,0.2,219.12,219.11,4.56391766]
[1760026291221,0.2,219.12,219.11,38.13391766]
[1760026296209,0.2,219.12,219.11,49.01039287]
[1760026297330,0.2,219.12,219.11,38.11391766]
[1760026298436,0.2,219.12,219.11,4.56391766]
[1760026298608,0.2,219.12,219.11,37.44391766]
[1760026299909,0.2,219.12,219.11,38.11391766]
[1760026300537,0.2,219.12,219.11,48.99039287]
[1760026304318,0.2,219.12,219.11,50.81650166]
[1760026305032,0.2,219.12,219.11,17.93650166]
[1760026305220,0.2,219.12,219.11,50.81650166]
[1760026306926,0.2,219.12,219.11,17.93650166]
[1760026307219,0.2,219.12,219.11,5.23391766]
[1760026307431,0.2,219.12,219.11,58.89391766]
[1760026308118,0.2,219.12,219.11,58.22391766]
[1760026308826,0.2,219.12,219.11,58.93391766]
[1760026309720,0.2,219.12,219.11,25.36391766]
[1760026309915,3.44461143,219.12,219.03,0.71]
[1760026310140,3.44461143,219.12,219.04,37.42537618]
[1760026310642,0.68,219.11,219.04,48.83881664]
[1760026310828,0.68,219.1,219.04,48.83881664]
[1760026311521,0.68,219.09,219.04,48.83881664]
[1760026311717,7.12854006,219.11,219.04,48.83881664]
[1760026312036,2.56461143,219.05,218.98,0.71]
[1760026312344,2.56461143,219.05,218.99,37.42641855]
[1760026312533,3.24461143,219.06,218.99,37.42641855]
[1760026312716,3.24461143,219.05,218.99,4.56641855]
[1760026312916,0.68,219.04,219.0,32.86]
[1760026314125,0.68,219.04,219.01,4.56600155]
[1760026314446,0.68,219.04,219.02,32.86]
[1760026314644,3.24461143,219.03,218.96,35.58]
[1760026314938,2.56461143,219.01,218.97,32.86]
[1760026315116,2.56461143,219.0,218.97,32.86]
[1760026315317,0.68,219.0,218.97,32.86]
[1760026315544,10.87647521,219.08,218.97,32.86]
[1760026315757,6.72047932,219.02,218.97,32.86]
[1760026315925,0.68,219.01,218.97,37.42676936]
[1760026316447,6.72047932,219.01,218.97,37.42676936]
[1760026317046,0.68,219.08,219.0,20.8]
[1760026317221,0.68,219.11,219.01,33.57]
[1760026317420,0.68,219.11,219.04,20.8]
[1760026317620,0.68,219.11,219.05,32.86]
[1760026318350,0.68,219.11,219.06,4.56495937]
[1760026318522,6.24047932,219.12,219.06,5.27495937]
[1760026318953,0.2,219.12,219.06,5.27495937]
[1760026319363,0.2,219.12,219.06,15.97735779]
[1760026319660,0.2,219.12,219.09,20.8]
[1760026319960,0.2,219.12,219.1,32.86]
[1760026320465,0.2,219.12,219.11,4.56391766]
[1760026320641,0.2,219.12,219.11,5.27391766]
[1760026321846,0.2,219.12,219.11,0.71]
[1760026322043,0.2,219.12,219.1,32.86]
[1760026322252,0.68,219.11,219.07,1.82644231]
[1760026322559,0.68,219.11,219.08,32.86]
[1760026322560,6.72047932,219.11,219.08,32.86]
[1760026322735,6.04047932,219.11,219.09,32.86]
[1760026322942,0.2,219.12,219.1,32.86]
[1760026323144,6.24047932,219.12,219.1,32.86]
[1760026323340,0.2,219.12,219.1,32.86]
[1760026324760,0.2,219.12,219.1,37.42412033]
[1760026324974,0.88,219.12,219.08,4.56433504]
[1760026325145,0.88,219.12,219.09,32.86]
[1760026325345,0.2,219.12,219.09,32.86]
[1760026326564,0.2,219.12,219.09,37.4242775]
[1760026327152,0.2,219.12,219.09,38.1342775]
[1760026328060,0.2,219.12,219.09,37.4242775]
[1760026328649,0.2,219.12,219.09,38.1342775]
[1760026328850,0.2,219.12,219.09,5.2742775]
[1760026329149,0.2,219.12,219.06,91.71239842]
[1760026329150,0.2,219.12,219.1,32.86]
[1760026329343,0.2,219.12,219.11,32.84]
[1760026330248,11.48422381,219.12,219.04,10.80379675]
[1760026330459,6.04047932,219.08,219.05,32.84]
[1760026330651,6.04047932,219.08,219.02,4.56559237]
[1760026330652,6.04047932,219.06,219.02,4.56559237]
[1760026330942,6.04047932,219.06,219.0,0.71]
[1760026330943,0.68,219.06,219.0,0.71]
[1760026331148,6.04047932,219.03,219.01,32.84]
[1760026331966,6.04047932,219.05,219.01,33.55]
[1760026332172,6.04047932,219.05,219.01,32.84]
[1760026332396,0.68,219.08,219.01,32.84]
[1760026332575,6.04047932,219.06,219.02,0.71]
[1760026332771,6.04047932,219.06,219.01,37.40591947]
[1760026333069,6.04047932,219.06,219.01,38.10591947]
[1760026333476,4.56483599,219.07,219.01,37.40591947]
[1760026333707,6.04047932,219.06,219.02,0.7]
[1760026334195,6.04047932,219.06,219.01,37.40591947]
[1760026334368,6.04047932,219.06,219.01,38.10591947]
[1760026334684,6.04047932,219.07,219.03,4.56558462]
[1760026334861,0.2,219.12,219.04,33.54]
[1760026335065,0.2,219.12,219.05,0.7]
[1760026336486,6.04047932,219.11,219.05,0.7]
[1760026336662,6.04047932,219.09,219.06,32.84]
[1760026336856,0.92,219.12,219.06,32.84]
[1760026336857,6.04047932,219.08,219.06,32.84]
[1760026337058,6.04047932,219.07,219.02,4.56579307]
[1760026337293,6.04047932,219.06,219.03,32.84]
[1760026337466,0.72,219.05,219.04,32.84]
[1760026337668,4.04610592,219.09,219.04,33.54]
[1760026337870,4.04610592,219.09,219.05,0.7]
[1760026338789,4.04610592,219.07,219.04,32.84]
[1760026339288,4.76610592,219.08,219.04,32.84]
[1760026340763,11.60927345,219.12,219.01,80.3]
[1760026340764,4.04610592,219.05,219.01,80.3]
[1760026340964,0.72,219.04,219.02,32.84]
[1760026341191,4.56475099,219.07,219.02,32.84]
[1760026341192,4.04610592,219.03,219.02,32.84]
[1760026341490,4.04610592,219.03,218.98,0.7]
[1760026341793,4.04610592,219.01,218.99,32.84]
[1760026341967,4.04610592,219.01,218.96,0.7]
[1760026341968,4.04610592,219.01,219.0,32.84]
[1760026342672,4.04610592,219.02,219.0,32.84]
[1760026342871,21.52,219.08,219.01,0.7]
[1760026343065,4.04610592,219.04,219.0,32.84]
[1760026343494,4.04610592,219.03,219.0,32.84]
[1760026344382,15.44101784,219.08,219.0,32.84]
[1760026344576,4.04610592,219.01,219.0,32.84]
[1760026345381,4.04610592,219.02,219.0,32.84]
[1760026346086,4.04610592,219.03,219.0,32.84]
[1760026347074,4.56516776,219.05,219.0,32.84]
[1760026347275,4.04610592,219.03,219.0,32.84]
[1760026347791,4.04610592,219.02,219.0,32.84]
[1760026348571,4.76610592,219.01,218.95,20.8]
[1760026348795,4.04610592,218.98,218.96,32.84]
[1760026348999,4.04610592,218.97,218.92,4.56781027]
[1760026349178,4.04610592,218.95,218.93,32.84]
[1760026349994,5.28703248,218.97,218.86,4.56913095]
[1760026349995,4.04610592,218.94,218.86,4.56913095]
[1760026350298,4.04610592,218.93,218.88,0.7]
[1760026350476,4.04610592,218.93,218.89,0.7]
[1760026350675,4.04610592,218.94,218.9,0.7]
[1760026350885,4.04610592,218.94,218.91,32.84]
[1760026351489,4.04610592,218.94,218.91,32.34]
[1760026352085,4.04610592,218.94,218.91,36.90796995]
[1760026352283,4.04610592,218.94,218.89,5.26845516]
[1760026352485,4.04610592,218.94,218.9,32.84]
[1760026352705,4.04610592,218.94,218.91,0.7]
[1760026353281,4.04610592,218.94,218.9,4.56823515]
[1760026353482,4.04610592,218.95,218.9,5.26823515]
[1760026353691,4.04610592,218.95,218.91,32.84]
[1760026354999,4.76610592,218.94,218.92,32.84]
[1760026355298,4.04610592,218.94,218.89,5.2684885]
[1760026355607,4.04610592,218.95,218.9,33.54]
[1760026355901,4.76610592,218.95,218.9,33.54]
[1760026356204,4.04610592,218.94,218.9,33.54]
[1760026356803,4.04610592,218.94,218.9,5.26828414]
[1760026356996,4.04610592,218.94,218.91,32.84]
[1760026357501,1.64504838,218.94,218.91,32.84]
[1760026358001,1.64504838,218.93,218.91,32.84]
[1760026358776,4.56759383,218.94,218.91,32.84]
[1760026359005,1.64504838,218.92,218.86,80.3]
[1760026359183,2.36504838,218.91,218.87,32.84]
[1760026359383,4.56759383,218.94,218.87,32.84]
[1760026359607,1.64504838,218.91,218.87,32.84]
[1760026359917,1.64504838,218.9,218.87,32.84]
[1760026360805,1.64504838,218.9,218.87,33.54]
[1760026360975,11.41774463,218.96,218.87,37.40887781]
[1760026361184,12.13774463,218.96,218.88,0.7]
[1760026361408,1.64504838,218.93,218.88,0.7]
[1760026361601,1.64504838,218.93,218.89,0.7]
[1760026361789,1.64504838,218.93,218.9,32.84]
[1760026362313,1.64504838,218.94,218.9,33.54]
[1760026362983,25.36701737,218.97,218.91,0.72]
[1760026363177,1.64504838,218.96,218.91,0.72]
[1760026363494,1.64504838,218.96,218.9,32.84]
[1760026363495,1.64504838,218.92,218.89,32.84]
[1760026363806,1.64504838,218.9,218.86,0.72]
[1760026363992,1.64504838,218.9,218.87,32.84]
[1760026364809,4.56798567,218.92,218.88,0.72]
[1760026365101,6.21303405,218.92,218.87,37.40889309]
[1760026365310,6.21303405,218.92,218.89,0.66]
[1760026365475,6.21303405,218.92,218.83,20.8]
[1760026365683,1.64504838,218.87,218.84,33.48]
[1760026365976,1.64504838,218.85,218.83,32.82]
[1760026366703,1.64504838,218.85,218.83,33.48]
[1760026366892,1.64504838,218.86,218.83,0.66]
[1760026367211,4.56872213,218.88,218.83,38.04972559]
[1760026367433,1.64504838,218.86,218.83,38.04972559]
[1760026367586,4.05341798,218.86,218.83,38.04972559]
[1760026367785,4.05341798,218.86,218.83,37.38972559]
[1760026368007,4.05341798,218.86,218.84,0.66]
[1760026368178,4.05341798,218.86,218.83,32.82]
[1760026368381,4.05341798,218.86,218.84,0.66]
[1760026369306,4.05341798,218.86,218.83,32.82]
[1760026370081,4.05341798,218.85,218.83,0.66]
[1760026370318,4.05341798,218.85,218.83,33.5]
[1760026370985,0.66,218.87,218.81,33.58]
[1760026371188,10.87647521,218.91,218.82,0.66]
[1760026371189,0.66,218.91,218.82,0.66]
[1760026371393,29.42130839,218.92,218.82,0.66]
[1760026371608,23.61886451,219.04,218.84,20.8]
[1760026371609,0.66,218.97,218.84,20.8]
[1760026371911,4.05341798,218.95,218.85,33.48]
[1760026372116,21.46,218.97,218.86,0.66]
[1760026372288,4.05341798,218.95,218.86,0.66]
[1760026373017,8.62081214,218.95,218.87,4.56892219]
[1760026373318,4.56706917,218.96,218.88,0.66]
[1760026373529,4.56661104,218.99,218.89,32.82]
[1760026373694,11.41379677,219.04,218.9,0.66]
[1760026373899,0.66,219.03,218.9,0.66]
[1760026374208,4.05341798,219.0,218.9,0.66]
[1760026374386,4.05341798,218.99,218.9,0.66]
[1760026374590,4.05341798,219.0,218.9,0.66]
[1760026374830,4.56558462,219.03,218.91,15.98830569]
[1760026374994,4.05341798,219.02,218.92,0.66]
[1760026375195,4.56558462,219.03,218.94,20.8]
[1760026375395,4.56558462,219.03,218.95,0.66]
[1760026375814,4.05341798,219.04,218.95,0.66]
[1760026376003,4.05341798,219.01,218.96,32.82]
[1760026376198,4.05341798,219.0,218.96,32.82]
[1760026376404,4.05341798,218.97,218.87,0.66]
[1760026376604,4.05341798,218.91,218.87,14.5]
[1760026376902,4.05341798,218.91,218.88,0.66]
[1760026377213,4.05341798,218.91,218.87,18.40885236]
[1760026377397,4.05341798,218.91,218.88,0.66]
[1760026377598,4.05341798,218.91,218.87,18.40885236]
[1760026377825,4.05341798,218.91,218.87,19.06885236]
[1760026378193,4.05341798,218.92,218.88,0.66]
[1760026378422,4.05341798,218.93,218.88,0.66]
[1760026379224,4.05341798,218.92,218.88,5.22870327]
[1760026381525,8.62132297,218.92,218.87,13.84]
[1760026381726,4.05341798,218.88,218.81,0.76]
[1760026381907,4.05341798,218.85,218.82,32.82]
[1760026382438,4.05341798,218.83,218.81,0.1]
[1760026382611,4.05341798,218.82,218.81,0.1]
[1760026383012,4.05341798,218.83,218.81,0.1]
[1760026383708,4.05341798,218.84,218.81,0.1]
[1760026383906,5.22932328,218.86,218.81,0.1]
[1760026384106,4.05341798,218.84,218.81,0.1]
[1760026384797,4.05341798,218.84,218.81,4.670125]
[1760026385125,4.05341798,218.87,218.82,0.66]
[1760026385506,4.05341798,218.87,218.83,0.66]
[1760026386220,4.05341798,218.87,218.81,5.330125]
[1760026386424,4.05341798,218.86,218.81,5.330125]
[1760026386625,4.05341798,218.86,218.81,4.670125]
[1760026386826,4.56899859,218.87,218.82,0.66]
[1760026387024,8.62241657,218.87,218.82,0.66]
[1760026387206,4.05341798,218.89,218.83,0.66]
[1760026387404,4.05341798,218.91,218.84,32.82]
[1760026387610,5.22780336,218.93,218.84,32.82]
[1760026387611,4.05341798,218.92,218.85,5.22933973]
[1760026387908,0.66,218.96,218.86,0.66]
[1760026388106,2.38492245,218.99,218.86,0.66]
[1760026388302,4.05341798,218.97,218.88,20.8]
[1760026388506,4.05341798,218.97,218.89,33.48]
[1760026388810,4.05341798,218.97,218.9,0.66]
[1760026389132,8.62046218,218.96,218.9,5.22828422]
[1760026389312,8.62046218,218.96,218.91,32.82]
[1760026389502,4.05341798,218.96,218.92,0.66]
[1760026389703,4.71341798,218.97,218.92,0.66]
[1760026389950,0.66,218.97,218.92,0.66]
[1760026390231,0.66,218.96,218.92,32.82]
[1760026390531,4.71341798,218.96,218.92,32.82]
[1760026390699,4.05341798,218.96,218.9,4.56828422]
[1760026390904,4.05341798,218.92,218.84,21.46]
[1760026391112,4.05341798,218.92,218.85,32.82]
[1760026391312,4.05341798,218.92,218.86,5.22913095]
[1760026391501,4.05341798,218.93,218.86,5.22913095]
[1760026391716,4.05341798,218.92,218.86,5.22913095]
[1760026392121,4.71341798,218.91,218.87,32.82]
[1760026392506,4.05341798,218.91,218.88,0.65]
[1760026393037,4.05341798,218.92,218.88,0.65]
[1760026393411,4.05341798,218.92,218.87,37.38873777]
[1760026393702,4.05341798,218.92,218.87,33.47]
[1760026393912,4.05341798,218.88,218.81,0.1]
[1760026394114,4.05341798,218.85,218.82,32.82]
[1760026394720,4.05341798,218.85,218.81,32.9]
[1760026394721,4.05341798,218.84,218.81,32.9]
[1760026395109,4.05341798,218.83,218.81,32.9]
[1760026397031,4.05341798,218.84,218.81,32.9]
[1760026397222,4.05341798,218.85,218.81,37.47014619]
[1760026397420,6.04767119,218.88,218.82,0.65]
[1760026397626,6.04767119,218.89,218.82,0.65]
[1760026398915,6.04767119,218.88,218.82,0.65]
[1760026399730,6.04767119,218.89,218.83,4.56975734]
[1760026400030,6.04767119,218.89,218.83,5.21975734]
[1760026400613,6.04767119,218.91,218.84,0.65]
[1760026400825,6.04767119,218.92,218.85,32.8]
[1760026401010,6.04767119,218.92,218.86,0.65]
[1760026402350,6.04767119,218.92,218.87,4.56892219]
[1760026402645,6.76767119,218.92,218.87,4.56892219]
[1760026403148,6.76767119,218.92,218.87,5.21892219]
[1760026404222,10.61553387,218.93,218.88,0.65]
[1760026404522,10.61553387,218.93,218.89,33.45]
[1760026404722,10.61553387,218.93,218.89,32.8]
[1760026404928,10.87647521,218.98,218.89,32.8]
[1760026404929,6.04767119,218.96,218.9,0.65]
[1760026405133,0.72,218.98,218.9,0.65]
[1760026405134,21.52,218.98,218.9,0.65]
[1760026405335,6.04767119,218.99,218.9,0.65]
[1760026405826,5.28600155,219.01,218.9,0.65]
[1760026405827,0.72,219.01,218.9,0.65]
[1760026406029,0.72,219.03,218.94,20.8]
[1760026406226,0.72,219.03,218.96,15.98465472]
[1760026406741,0.72,219.03,218.97,0.65]
[1760026407138,11.33299676,219.05,218.97,0.65]
[1760026407343,5.28532557,219.05,218.97,0.65]
[1760026407649,6.04767119,219.04,218.97,0.65]
[1760026408344,6.04767119,219.04,218.98,4.56662708]
[1760026409152,4.56532557,219.05,218.98,4.56662708]
[1760026409325,6.04767119,219.03,218.98,4.56662708]
[1760026409526,6.76767119,219.03,218.98,4.56662708]
[1760026410047,4.76697953,219.1,218.99,20.8]
[1760026410257,0.72,219.11,219.02,4.56579307]
[1760026410434,0.2,219.12,219.03,0.65]
[1760026410752,0.2,219.12,219.05,20.8]
[1760026410944,0.2,219.12,219.06,33.45]
[1760026411331,0.2,219.12,219.07,0.65]
[1760026411549,0.2,219.12,219.08,0.65]
[1760026411849,0.2,219.12,219.08,5.21437435]
[1760026413245,6.76767119,219.11,219.05,5.21505183]
[1760026413449,6.04767119,219.11,219.06,32.78]
[1760026413653,6.04767119,219.11,219.06,33.43]
[1760026414252,6.04767119,219.11,219.07,4.56475099]
[1760026414757,0.2,219.12,219.07,4.56475099]
[1760026414758,0.2,219.12,219.08,0.65]
[1760026414927,0.2,219.12,219.07,4.56475099]
[1760026414928,0.2,219.12,219.09,0.65]
[1760026415129,0.2,219.12,219.07,5.21475099]
[1760026415440,0.2,219.12,219.08,0.65]
[1760026415633,0.2,219.12,219.09,0.65]
[1760026415836,0.2,219.12,219.1,32.78]
[1760026419268,0.2,219.12,219.11,0.65]
[1760026420659,0.2,219.12,219.11,5.21391766]
[1760026421249,0.2,219.12,219.11,32.76]
[1760026422547,6.95767119,219.12,219.05,0.72]
[1760026422860,6.04767119,219.11,219.05,21.52]
[1760026423162,6.04767119,219.1,219.05,21.52]
[1760026423463,6.04767119,219.1,219.06,32.76]
[1760026424247,6.04767119,219.1,219.07,32.76]
[1760026424454,6.04767119,219.08,219.03,0.72]
[1760026424655,6.04767119,219.04,219.0,4.56621004]
[1760026424948,6.04767119,219.03,219.01,32.76]
[1760026425557,0.72,219.1,219.02,0.67]
[1760026425761,6.04767119,219.07,219.02,0.67]
[1760026425956,0.72,219.1,219.01,32.76]
[1760026426159,6.04767119,219.1,219.04,4.56537618]
[1760026426470,6.04767119,219.1,219.02,0.67]
[1760026426471,0.72,219.1,219.02,0.67]
[1760026426665,6.04767119,219.08,219.03,32.76]
[1760026426847,6.04767119,219.07,219.03,32.76]
[1760026427256,6.04767119,219.07,219.01,25.36588165]
[1760026427464,6.04767119,219.05,219.02,32.76]
[1760026427645,6.04767119,219.05,219.03,32.76]
[1760026428171,6.76767119,219.05,219.03,32.76]
[1760026428474,6.04767119,219.05,219.03,32.76]
[1760026429251,5.28454641,219.08,219.03,32.76]
[1760026429463,6.04767119,219.07,219.03,33.43]
[1760026430453,6.04767119,219.07,219.03,5.23556949]
[1760026430658,6.04767119,219.07,219.04,33.43]
[1760026431075,10.6122176,219.08,219.04,32.76]
[1760026431372,11.3322176,219.08,219.04,32.76]
[1760026431572,6.04767119,219.07,219.04,32.76]
[1760026432161,6.04767119,219.05,218.97,0.67]
[1760026432479,6.04767119,219.02,218.99,32.76]
[1760026432845,6.04767119,219.03,218.99,32.76]
[1760026433466,11.3334018,219.03,218.99,32.76]
[1760026433643,10.6134018,219.03,218.99,32.76]
[1760026433837,6.04767119,219.03,218.99,32.76]
[1760026434992,10.61332157,219.03,218.99,32.76]
[1760026435679,11.33332157,219.03,218.99,32.76]
[1760026436557,0.72,219.02,218.99,32.76]
[1760026436873,11.33332157,219.03,218.99,32.76]
[1760026437070,10.61332157,219.03,218.99,32.76]
[1760026437275,4.56565038,219.03,218.99,33.43]
[1760026438076,4.56485207,219.07,219.0,0.67]
[1760026438275,0.72,219.11,219.01,4.56600155]
[1760026438453,4.56412596,219.1,219.02,33.43]
[1760026438653,4.56412596,219.1,219.02,32.76]
[1760026438858,4.56412596,219.1,219.03,0.67]
[1760026439468,4.56412596,219.1,219.04,4.56537618]
[1760026439882,5.28412596,219.1,219.04,5.23537618]
[1760026440191,11.33179715,219.1,219.04,5.23537618]
[1760026440363,6.04767119,219.06,219.0,0.67]
[1760026440570,6.04767119,219.05,219.0,0.67]
[1760026440772,6.76767119,219.05,219.01,32.76]
[1760026440979,6.76767119,219.05,218.98,4.56660349]
[1760026440980,6.04767119,219.04,218.98,4.56660349]
[1760026441289,6.04767119,219.04,218.99,32.76]
[1760026441461,6.04767119,219.04,218.99,33.43]
[1760026441862,6.04767119,219.05,219.0,0.67]
[1760026442158,6.04767119,219.06,219.0,0.67]
[1760026442370,0.72,219.05,219.0,0.67]
[1760026443171,6.76767119,219.05,219.0,0.67]
[1760026443780,10.61303274,219.05,218.97,4.56663403]
[1760026443963,6.04767119,219.03,218.98,32.76]
[1760026444166,6.04767119,219.03,218.95,0.67]
[1760026444471,6.04767119,218.96,218.9,13.36520795]
[1760026444670,0.72,219.0,218.93,32.76]
[1760026445020,6.04767119,218.97,218.93,32.76]
[1760026445282,6.04767119,218.96,218.93,32.76]
[1760026445490,6.04767119,218.95,218.9,5.23811178]
[1760026445673,6.04767119,218.95,218.88,20.8]
[1760026445674,6.76767119,218.94,218.88,5.23850618]
[1760026445987,6.04767119,218.93,218.91,32.76]
[1760026446668,6.04767119,218.93,218.88,5.23870776]
[1760026446867,6.04767119,218.93,218.89,33.43]
[1760026447067,6.04767119,218.93,218.9,32.76]
[1760026447689,6.04767119,218.91,218.83,0.67]
[1760026447886,6.04767119,218.89,218.84,32.76]
[1760026448073,6.04767119,218.89,218.84,33.43]
[1760026448482,6.76767119,218.89,218.84,32.76]
[1760026448680,20.8,218.93,218.8,5.24018858]
[1760026448681,6.04767119,218.86,218.8,5.24018858]
[1760026448878,6.04767119,218.86,218.82,32.76]
[1760026449182,6.04767119,218.84,218.82,32.76]
[1760026450276,6.76767119,218.83,218.76,0.67]
[1760026450588,6.04767119,218.82,218.76,33.43]
[1760026450969,6.04767119,218.82,218.78,4.57078363]
[1760026451182,6.76767119,218.82,218.77,0.67]
[1760026451585,6.76767119,218.82,218.77,5.24098255]
[1760026451781,6.04767119,218.82,218.76,32.76]
[1760026452090,6.04767119,218.82,218.77,4.57091225]
[1760026453294,6.04767119,218.82,218.78,4.57075578]